Workbook

Sheet Лист1
A1: Школа | C1: МБОУ СОШ №12 г Альметьевск | F1: Утвердил: | G1: должность | H1: И.О. директора
A2: Типовое примерное меню приготавливаемых блюд | G2: фамилия | H2: Шаяхметова А.Н.
A3: Возрастная категория | E3: 7-11 лет | G3: дата | H3: 29 | I3: 8 | J3: 2025
H4: день | I4: месяц | J4: год
A5: Неделя | B5: День недели | C5: Прием пищи | D5: Раздел меню | E5: Блюда | F5: Вес блюда, г | G5: Белки | H5: Жиры | I5: Углеводы | J5: Калорийность | K5: № рецептуры | L5: Цена
A6: 1 | B6: 1 | C6: Завтрак | D6: гор.блюдо | E6: Сырники из творога с кашей молочной "Дружба" с маслом сливочным | F6: 215 | G6: 10.55 | H6: 11.85 | I6: 39.4 | J6: 324.45 | L6: 74.77
D7: гор.напиток | E7: Кофейный напиток с молоком | F7: 200 | G7: 3.2 | H7: 2.7 | I7: 6 | J7: 60.7 | K7: 379
D8: хлеб | E8: Хлеб ржаной | F8: 30 | G8: 1.98 | H8: 0.36 | I8: 11.88 | J8: 59.4
D9: фрукты | E9: Плоды и ягоды свежие (яблоки) | F9: 100 | G9: 0.4 | H9: 0.4 | I9: 9.8 | J9: 47
D10: итого | F10: =SUM(F6:F9) -> 545 | G10: =SUM(G6:G9) -> 16.13 | H10: =SUM(H6:H9) -> 15.31 | I10: =SUM(I6:I9) -> 67.08 | J10: =SUM(J6:J9) -> 491.55 | L10: =SUM(L6:L9) -> 74.77
A11: =A6 -> 1 | B11: =B6 -> 1 | C11: Обед | D11: закуска
D12: 1 блюдо
D13: 2 блюдо
D14: гарнир
D15: напиток
D16: хлеб бел.
D17: хлеб черн.
D20: итого | F20: =SUM(F11:F19) -> 0 | G20: =SUM(G11:G19) -> 0 | H20: 0 | I20: 0 | J20: 0 | L20: =SUM(L11:L19) -> 0
A21: =A6 -> 1 | B21: =B6 -> 1 | C21: Итого за день: | F21: =F10+F20 -> 545 | G21: =G10+G20 -> 16.13 | H21: 15.31 | I21: 67.08 | J21: 491.55 | L21: =L10+L20 -> 74.77
A22: 1 | B22: 2 | C22: Завтрак | D22: гор.блюдо | E22: Котлета из мяса птицы с макаронными изделиями отварными, с маслом сливочным | F22: 230 | G22: 11.45 | H22: 12.46 | I22: 31.32 | J22: 289.95 | L22: 74.77
D23: гор.напиток | E23: Компот из сухофруктов (75С) | F23: 200 | G23: 0.66 | H23: 0.09 | I23: 22.03 | J23: 92.8 | K23: 349
D24: хлеб | E24: Хлеб ржаной | F24: 30 | G24: 1.98 | H24: 0.36 | I24: 11.88 | J24: 59.4
D25: закуска | E25: Салат из моркови с яблоками | F25: 60 | G25: 0.64 | H25: 3.01 | I25: 5.11 | J25: 50.91
D26: итого | F26: =SUM(F22:F25) -> 520 | G26: =SUM(G22:G25) -> 14.73 | H26: =SUM(H22:H25) -> 15.92 | I26: =SUM(I22:I25) -> 70.34 | J26: =SUM(J22:J25) -> 493.06 | L26: =SUM(L22:L25) -> 74.77
A27: =A22 -> 1 | B27: =B22 -> 2 | C27: Обед | D27: закуска
D28: 1 блюдо
D29: 2 блюдо
D30: гарнир
D31: напиток
D32: хлеб бел.
D33: хлеб черн.
D36: итого | F36: =SUM(F27:F35) -> 0 | G36: =SUM(G27:G35) -> 0 | H36: =SUM(H27:H35) -> 0 | I36: =SUM(I27:I35) -> 0 | J36: =SUM(J27:J35) -> 0 | L36: 0
A37: =A22 -> 1 | B37: =B22 -> 2 | C37: Итого за день: | F37: =F26+F36 -> 520 | G37: =G26+G36 -> 14.73 | H37: =H26+H36 -> 15.92 | I37: =I26+I36 -> 70.34 | J37: =J26+J36 -> 493.06 | L37: 74.77
A38: 1 | B38: 3 | C38: Завтрак | D38: гор.блюдо | E38: Гуляш из говядины | F38: 100 | G38: 10.39 | H38: 14.79 | I38: 10.3 | J38: 221 | K38: 260 | L38: 74.77
D39: гор.блюдо | E39: Каша гречневая рассыпчатая | F39: 150 | G39: 3.77 | H39: 2.29 | I39: 39.72 | J39: 214 | K39: 171
D40: гор.напиток | E40: Чай с сахаром, с лимоном | F40: 200 | G40: 0.11 | H40: 0.02 | I40: 10.15 | J40: 41.32 | K40: 377
D41: хлеб | E41: Хлеб ржаной | F41: 50 | G41: 3.3 | H41: 0.6 | I41: 19.8 | J41: 99
D42: кисломол. | E42: Сыр порционно | F42: 10 | G42: 2.63 | H42: 2.66 | I42: 0 | J42: 34.33 | K42: 15
D43: итого | F43: =SUM(F38:F42) -> 510 | G43: =SUM(G38:G42) -> 20.2 | H43: =SUM(H38:H42) -> 20.36 | I43: =SUM(I38:I42) -> 79.97 | J43: =SUM(J38:J42) -> 609.65 | L43: =SUM(L38:L42) -> 74.77
A44: =A38 -> 1 | B44: =B38 -> 3 | C44: Обед | D44: закуска
D45: 1 блюдо
D46: 2 блюдо
D47: гарнир
D48: напиток
D49: хлеб бел.
D50: хлеб черн.
D53: итого | F53: =SUM(F44:F52) -> 0 | G53: =SUM(G44:G52) -> 0 | H53: =SUM(H44:H52) -> 0 | I53: =SUM(I44:I52) -> 0 | J53: =SUM(J44:J52) -> 0 | L53: 0
A54: =A38 -> 1 | B54: =B38 -> 3 | C54: Итого за день: | F54: =F43+F53 -> 510 | G54: =G43+G53 -> 20.2 | H54: =H43+H53 -> 20.36 | I54: =I43+I53 -> 79.97 | J54: =J43+J53 -> 609.65 | L54: 74.77
A55: 1 | B55: 4 | C55: Завтрак | D55: гор.блюдо | E55: Птица запеченная | F55: 100 | G55: 10.42 | H55: 12.43 | I55: 8.65 | J55: 192 | L55: 74.77
D56: гор.блюдо | E56: Пюре картофельное с маслом сливочным | F56: 153 | G56: 3.08 | H56: 6.25 | I56: 20.47 | J56: 150.45 | K56: 312
D57: гор.напиток | E57: Напиток из свежих фруктов (75С) | F57: 200 | G57: 0.34 | H57: 0.17 | I57: 21.46 | J57: 103.5
D58: хлеб | E58: Хлеб ржаной | F58: 30 | G58: 1.98 | H58: 0.36 | I58: 11.88 | J58: 59.4
D59: хлеб | E59: Хлеб пшеничный | F59: 30 | G59: 2.28 | H59: 0.24 | I59: 14.76 | J59: 70.5
D60: закуска | E60: Свекла отварная дольками | F60: 60 | G60: 1.08 | H60: 0.06 | I60: 5.88 | J60: 28.8
D61: итого | F61: =SUM(F55:F60) -> 573 | G61: =SUM(G55:G60) -> 19.18 | H61: =SUM(H55:H60) -> 19.51 | I61: =SUM(I55:I60) -> 83.1 | J61: =SUM(J55:J60) -> 604.65 | L61: =SUM(L55:L58) -> 74.77
A62: =A55 -> 1 | B62: =B55 -> 4 | C62: Обед | D62: закуска
D63: 1 блюдо
D64: 2 блюдо
D65: гарнир
D66: напиток
D67: хлеб бел.
D68: хлеб черн.
D71: итого | F71: =SUM(F62:F70) -> 0 | G71: =SUM(G62:G70) -> 0 | H71: =SUM(H62:H70) -> 0 | I71: =SUM(I62:I70) -> 0 | J71: =SUM(J62:J70) -> 0 | L71: 0
A72: =A55 -> 1 | B72: =B55 -> 4 | C72: Итого за день: | F72: =F61+F71 -> 573 | G72: =G61+G71 -> 19.18 | H72: =H61+H71 -> 19.51 | I72: =I61+I71 -> 83.1 | J72: =J61+J71 -> 604.65 | L72: 74.77
A73: 1 | B73: 5 | C73: Завтрак | D73: гор.блюдо | E73: Тефтели мясные в сметанно-томатном соусе | F73: 100 | G73: 7.08 | H73: 11.94 | I73: 8.36 | J73: 144 | K73: 279, 339 | L73: 74.77
D74: гор.блюдо | E74: Макаронные изделия отварные с маслом сливочным | F74: 185 | G74: 5.1 | H74: 3.62 | I74: 31.96 | J74: 176.1 | K74: 203
D75: гор.напиток | E75: Компот из сухофруктов (75С) | F75: 200 | G75: 0.66 | H75: 0.09 | I75: 22.03 | J75: 92.8 | K75: 349
D76: хлеб | E76: Хлеб пшеничный | F76: 45 | G76: 3.42 | H76: 0.36 | I76: 22.14 | J76: 105.75
D77: кисломол. | E77: Сыр порционно | F77: 15 | G77: 3.95 | H77: 3.99 | I77: 0 | J77: 51.5 | K77: 15
D78: итого | F78: =SUM(F73:F77) -> 545 | G78: =SUM(G73:G77) -> 20.21 | H78: =SUM(H73:H77) -> 20 | I78: =SUM(I73:I77) -> 84.49 | J78: =SUM(J73:J77) -> 570.15 | L78: =SUM(L73:L77) -> 74.77
A79: =A73 -> 1 | B79: =B73 -> 5 | C79: Обед | D79: закуска
D80: 1 блюдо
D81: 2 блюдо
D82: гарнир
D83: напиток
D84: хлеб бел.
D85: хлеб черн.
D88: итого | F88: =SUM(F79:F87) -> 0 | G88: =SUM(G79:G87) -> 0 | H88: =SUM(H79:H87) -> 0 | I88: =SUM(I79:I87) -> 0 | J88: =SUM(J79:J87) -> 0 | L88: 0
A89: =A73 -> 1 | B89: =B73 -> 5 | C89: Итого за день: | F89: =F78+F88 -> 545 | G89: =G78+G88 -> 20.21 | H89: =H78+H88 -> 20 | I89: =I78+I88 -> 84.49 | J89: =J78+J88 -> 570.15 | L89: 74.77
A90: 2 | B90: 1 | C90: Завтрак | D90: гор.блюдо | E90: Сырники из творога с кашей пшенной молочной с маслом сливочным | F90: 245 | G90: 16.02 | H90: 18.13 | I90: 42.98 | J90: 386.4 | L90: 74.77
D91: гор.напиток | E91: Чай "Витаминный" с шиповником | F91: 200 | G91: 0.24 | H91: 0.09 | I91: 12.43 | J91: 54.2 | K91: 376
D92: хлеб | E92: Хлеб пшеничный | F92: 25 | G92: 1.9 | H92: 0.2 | I92: 12.3 | J92: 58.75
D93: хлеб | E93: Хлеб ржаной | F93: 30 | G93: 1.98 | H93: 0.36 | I93: 11.88 | J93: 59.4
D94: итого | F94: =SUM(F90:F93) -> 500 | G94: =SUM(G90:G93) -> 20.14 | H94: =SUM(H90:H93) -> 18.78 | I94: =SUM(I90:I93) -> 79.59 | J94: =SUM(J90:J93) -> 558.75 | L94: =SUM(L90:L93) -> 74.77
A95: =A90 -> 2 | B95: =B90 -> 1 | C95: Обед | D95: закуска
D96: 1 блюдо
D97: 2 блюдо
D98: гарнир
D99: напиток
D100: хлеб бел.
D101: хлеб черн.
D104: итого | F104: =SUM(F95:F103) -> 0 | G104: =SUM(G95:G103) -> 0 | H104: 0 | I104: 0 | J104: 0 | L104: =SUM(L95:L103) -> 0
A105: =A90 -> 2 | B105: =B90 -> 1 | C105: Итого за день: | F105: =F94+F104 -> 500 | G105: =G94+G104 -> 20.14 | H105: =H94+H104 -> 18.78 | I105: =I94+I104 -> 79.59 | J105: =J94+J104 -> 558.75 | L105: 74.77
A106: 2 | B106: 2 | C106: Завтрак | D106: гор.блюдо | E106: Овощи тушеные с мясом | F106: 200 | G106: 12.48 | H106: 15.68 | I106: 19.34 | J106: 271.5 | K106: 143, 241 | L106: 74.77
D107: гор.напиток | E107: Компот из сухофруктов (75С) | F107: 200 | G107: 0.66 | H107: 0.09 | I107: 22.03 | J107: 92.8 | K107: 349
D108: хлеб | E108: Хлеб ржаной | F108: 20 | G108: 1.32 | H108: 0.24 | I108: 7.92 | J108: 39.6
D109: фрукты | E109: Плоды и ягоды свежие (апельсины) | F109: 180 | G109: 1.62 | H109: 0.36 | I109: 14.58 | J109: 77.4
D110: итого | F110: =SUM(F106:F109) -> 600 | G110: =SUM(G106:G109) -> 16.08 | H110: =SUM(H106:H109) -> 16.37 | I110: =SUM(I106:I109) -> 63.87 | J110: =SUM(J106:J109) -> 481.3 | L110: =SUM(L106:L109) -> 74.77
A111: =A106 -> 2 | B111: =B106 -> 2 | C111: Обед | D111: закуска
D112: 1 блюдо
D113: 2 блюдо
D114: гарнир
D115: напиток
D116: хлеб бел.
D117: хлеб черн.
D120: итого | F120: =SUM(F111:F119) -> 0 | G120: =SUM(G111:G119) -> 0 | H120: 0 | I120: 0 | J120: 0 | L120: =SUM(L111:L119) -> 0
A121: =A106 -> 2 | B121: =B106 -> 2 | C121: Итого за день: | F121: =F110+F120 -> 600 | G121: =G110+G120 -> 16.08 | H121: =H110+H120 -> 16.37 | I121: =I110+I120 -> 63.87 | J121: =J110+J120 -> 481.3 | L121: 74.77
A122: 2 | B122: 3 | C122: Завтрак | D122: гор.блюдо | E122: Плов из говядины с рисовой крупой | F122: 200 | G122: 15.95 | H122: 19.55 | I122: 39.75 | J122: 408.42 | K122: 265 | L122: 74.77
D123: гор.напиток | E123: Чай с сахаром | F123: 200 | G123: 0.07 | H123: 0.02 | I123: 10.01 | J123: 40 | K123: 376
D124: хлеб | E124: Хлеб пшеничный | F124: 25 | G124: 1.9 | H124: 0.2 | I124: 12.3 | J124: 58.75
D125: фрукты | E125: Плоды и ягоды свежие (яблоки) | F125: 100 | G125: 0.4 | H125: 0.4 | I125: 9.8 | J125: 47
D126: хлеб | E126: Хлеб ржаной | F126: 20 | G126: 1.32 | H126: 0.24 | I126: 7.92 | J126: 39.6
D127: итого | F127: =SUM(F122:F126) -> 545 | G127: =SUM(G122:G126) -> 19.64 | H127: =SUM(H122:H126) -> 20.41 | I127: =SUM(I122:I126) -> 79.78 | J127: =SUM(J122:J126) -> 593.77 | L127: =SUM(L122:L126) -> 74.77
A128: =A122 -> 2 | B128: =B122 -> 3 | C128: Обед | D128: закуска
D129: 1 блюдо
D130: 2 блюдо
D131: гарнир
D132: напиток
D133: хлеб бел.
D134: хлеб черн.
D137: итого | F137: =SUM(F128:F136) -> 0 | G137: =SUM(G128:G136) -> 0 | H137: 0 | I137: 0 | J137: 0 | L137: =SUM(L128:L136) -> 0
A138: =A122 -> 2 | B138: =B122 -> 3 | C138: Итого за день: | F138: =F127+F137 -> 545 | G138: =G127+G137 -> 19.64 | H138: =H127+H137 -> 20.41 | I138: =I127+I137 -> 79.78 | J138: =J127+J137 -> 593.77 | L138: 74.77
A139: 2 | B139: 4 | C139: Завтрак | D139: гор.блюдо | E139: Котлета из мяса птицы с макаронными изделиями отварными, с маслом сливочным | F139: 230 | G139: 11.45 | H139: 12.46 | I139: 31.32 | J139: 289.95 | L139: 74.77
D140: гор.напиток | E140: Какао с молоком | F140: 200 | G140: 1.58 | H140: 3.54 | I140: 7.6 | J140: 78.6 | K140: 382
D141: хлеб | E141: Хлеб пшеничный | F141: 30 | G141: 2.28 | H141: 0.24 | I141: 14.76 | J141: 70.5
D142: закуска | E142: Салат из моркови | F142: 60 | G142: 0.74 | H142: 0.06 | I142: 9.98 | J142: 49.02
D143: итого | F143: =SUM(F139:F142) -> 520 | G143: =SUM(G139:G142) -> 16.05 | H143: =SUM(H139:H142) -> 16.3 | I143: =SUM(I139:I142) -> 63.66 | J143: =SUM(J139:J142) -> 488.07 | L143: =SUM(L139:L142) -> 74.77
A144: =A139 -> 2 | B144: =B139 -> 4 | C144: Обед | D144: закуска
D145: 1 блюдо
D146: 2 блюдо
D147: гарнир
D148: напиток
D149: хлеб бел.
D150: хлеб черн.
D153: итого | F153: =SUM(F144:F152) -> 0 | G153: =SUM(G144:G152) -> 0 | H153: 0 | I153: 0 | J153: 0 | L153: =SUM(L144:L152) -> 0
A154: =A139 -> 2 | B154: =B139 -> 4 | C154: Итого за день: | F154: =F143+F153 -> 520 | G154: =G143+G153 -> 16.05 | H154: =H143+H153 -> 16.3 | I154: =I143+I153 -> 63.66 | J154: =J143+J153 -> 488.07 | L154: 74.77
A155: 2 | B155: 5 | C155: Завтрак | D155: гор.блюдо | E155: Биточки рыбные с картофельным пюре, с маслом сливочным | F155: 228 | G155: 12.24 | H155: 12.49 | I155: 31.49 | J155: 290.55 | L155: 74.77
D156: гор.напиток | E156: Компот из свежих яблок (75С) | F156: 200 | G156: 0.16 | H156: 0.16 | I156: 17.9 | J156: 74.6 | K156: 342
D157: хлеб | E157: Хлеб пшеничный | F157: 30 | G157: 2.28 | H157: 0.24 | I157: 14.76 | J157: 70.5
D158: закуска | E158: Салат из отварной свеклы | F158: 60 | G158: 0.84 | H158: 3.61 | I158: 4.96 | J158: 55.68 | K158: 52
D159: итого | F159: =SUM(F155:F158) -> 518 | G159: =SUM(G155:G158) -> 15.52 | H159: =SUM(H155:H158) -> 16.5 | I159: =SUM(I155:I158) -> 69.11 | J159: =SUM(J155:J158) -> 491.33 | L159: =SUM(L155:L158) -> 74.77
A160: =A155 -> 2 | B160: =B155 -> 5 | C160: Обед | D160: закуска
D161: 1 блюдо
D162: 2 блюдо
D163: гарнир
D164: напиток
D165: хлеб бел.
D166: хлеб черн.
D169: итого | F169: =SUM(F160:F168) -> 0 | G169: =SUM(G160:G168) -> 0 | H169: 0 | I169: 0 | J169: 0 | L169: =SUM(L160:L168) -> 0
A170: =A155 -> 2 | B170: =B155 -> 5 | C170: Итого за день: | F170: =F159+F169 -> 518 | G170: =G159+G169 -> 15.52 | H170: 16.5 | I170: 69.11 | J170: 491.33 | L170: =L159+L169 -> 74.77
C171: Среднее значение за период: | F171: =(F21+F37+F54+F72+F89+#REF!+F105+F121+F138+F154+F170+#REF!)/(IF(F21=0,0,1)+IF(F37=0,0,1)+IF(F54=0,0,1)+IF(F72=0,0,1)+IF(F89=0,0,1)+IF(#REF!=0,0,1)+IF(F105=0,0,1)+IF(F121=0,0,1)+IF(F138=0,0,1)+IF(F154=0,0,1)+IF(F170=0,0,1)+IF(#REF!=0,0,1)) ->  | G171: =(G21+G37+G54+G72+G89+#REF!+G105+G121+G138+G154+G170+#REF!)/(IF(G21=0,0,1)+IF(G37=0,0,1)+IF(G54=0,0,1)+IF(G72=0,0,1)+IF(G89=0,0,1)+IF(#REF!=0,0,1)+IF(G105=0,0,1)+IF(G121=0,0,1)+IF(G138=0,0,1)+IF(G154=0,0,1)+IF(G170=0,0,1)+IF(#REF!=0,0,1)) ->  | H171: =(H21+H37+H54+H72+H89+#REF!+H105+H121+H138+H154+H170+#REF!)/(IF(H21=0,0,1)+IF(H37=0,0,1)+IF(H54=0,0,1)+IF(H72=0,0,1)+IF(H89=0,0,1)+IF(#REF!=0,0,1)+IF(H105=0,0,1)+IF(H121=0,0,1)+IF(H138=0,0,1)+IF(H154=0,0,1)+IF(H170=0,0,1)+IF(#REF!=0,0,1)) ->  | I171: =(I21+I37+I54+I72+I89+#REF!+I105+I121+I138+I154+I170+#REF!)/(IF(I21=0,0,1)+IF(I37=0,0,1)+IF(I54=0,0,1)+IF(I72=0,0,1)+IF(I89=0,0,1)+IF(#REF!=0,0,1)+IF(I105=0,0,1)+IF(I121=0,0,1)+IF(I138=0,0,1)+IF(I154=0,0,1)+IF(I170=0,0,1)+IF(#REF!=0,0,1)) ->  | J171: =(J21+J37+J54+J72+J89+#REF!+J105+J121+J138+J154+J170+#REF!)/(IF(J21=0,0,1)+IF(J37=0,0,1)+IF(J54=0,0,1)+IF(J72=0,0,1)+IF(J89=0,0,1)+IF(#REF!=0,0,1)+IF(J105=0,0,1)+IF(J121=0,0,1)+IF(J138=0,0,1)+IF(J154=0,0,1)+IF(J170=0,0,1)+IF(#REF!=0,0,1)) ->  | L171: =(L21+L37+L54+L72+L89+#REF!+L105+L121+L138+L154+L170+#REF!)/(IF(L21=0,0,1)+IF(L37=0,0,1)+IF(L54=0,0,1)+IF(L72=0,0,1)+IF(L89=0,0,1)+IF(#REF!=0,0,1)+IF(L105=0,0,1)+IF(L121=0,0,1)+IF(L138=0,0,1)+IF(L154=0,0,1)+IF(L170=0,0,1)+IF(#REF!=0,0,1)) -> 
